bitfinex/quotes_SOLUSD_20250413
["timestamp","ask_amount","ask_price","bid_price","bid_amount"]
[1744509056725,31.46665438,131.4,131.34,7.6132]
[1744509056928,31.46665438,131.4,131.34,29.31705438]
[1744509057301,39.07705438,131.4,131.34,29.31705438]
[1744509057519,30.97705438,131.4,131.34,29.31705438]
[1744509057727,23.36665438,131.4,131.35,21.70385438]
[1744509058137,0.063,131.42,131.38,21.70385438]
[1744509058618,0.063,131.42,131.38,29.31535438]
[1744509059625,0.063,131.42,131.41,21.70385438]
[1744509060428,0.0001,131.42,131.41,21.70385438]
[1744509060729,29.30625438,131.54,131.42,18.79181043]
[1744509060939,29.30625438,131.54,131.48,21.70385438]
[1744509061228,7.6024,131.54,131.48,21.70385438]
[1744509061418,7.6024,131.54,131.49,21.70385438]
[1744509061619,29.30625438,131.54,131.49,21.70385438]
[1744509062209,21.70385438,131.53,131.48,21.70385438]
[1744509062627,29.30625438,131.54,131.48,21.70385438]
[1744509063327,21.70385438,131.52,131.47,21.70385438]
[1744509063541,29.30765438,131.52,131.47,21.70385438]
[1744509064119,7.603,131.53,131.47,29.30995438]
[1744509064430,21.70385438,131.52,131.47,29.30995438]
[1744509064931,29.30735438,131.52,131.46,21.70385438]
[1744509065137,21.70385438,131.51,131.46,21.70385438]
[1744509065320,29.30735438,131.52,131.47,21.70385438]
[1744509066134,21.70385438,131.49,131.42,81.6]
[1744509066316,32.6323,131.49,131.4,21.70385438]
[1744509066518,32.6323,131.49,131.39,7.6109]
[1744509066519,21.70385438,131.47,131.39,26.6382]
[1744509066832,21.70385438,131.45,131.4,21.70385438]
[1744509067729,21.70385438,131.45,131.4,29.31395438]
[1744509068111,7.6057,131.48,131.41,21.70385438]
[1744509068312,21.70385438,131.46,131.41,21.70385438]
[1744509068810,21.70385438,131.46,131.4,29.31395438]
[1744509069012,21.70385438,131.46,131.41,21.70385438]
[1744509069208,21.70385438,131.46,131.41,29.31345438]
[1744509069929,29.31075438,131.46,131.41,29.31345438]
[1744509070133,7.6069,131.46,131.41,29.31345438]
[1744509070431,29.31035438,131.47,131.41,29.31345438]
[1744509070617,21.70385438,131.46,131.41,29.31345438]
[1744509071329,29.31075438,131.46,131.41,29.31345438]
[1744509071526,21.70385438,131.48,131.42,21.70385438]
[1744509071832,0.063,131.5,131.45,21.70385438]
[1744509071833,21.76685438,131.5,131.45,21.70385438]
[1744509072421,21.70385438,131.47,131.41,89.2096]
[1744509072733,21.70385438,131.47,131.41,29.31345438]
[1744509072925,21.70385438,131.46,131.41,7.6096]
[1744509073526,29.31075438,131.46,131.41,7.6096]
[1744509073728,21.70385438,131.46,131.41,7.6096]
[1744509073921,21.70385438,131.46,131.41,29.31345438]
[1744509074123,21.70385438,131.48,131.43,21.70385438]
[1744509074322,21.70385438,131.49,131.43,21.70385438]
[1744509074521,21.70385438,131.46,131.41,29.31345438]
[1744509074723,21.70385438,131.48,131.42,21.70385438]
[1744509075533,29.30975438,131.48,131.42,29.31255438]
[1744509075746,7.6053,131.49,131.42,29.31255438]
[1744509075922,0.063,131.5,131.46,21.70385438]
[1744509076124,0.063,131.5,131.47,21.70385438]
[1744509076329,0.063,131.5,131.48,21.70385438]
[1744509076525,0.063,131.5,131.46,21.70385438]
[1744509076835,0.063,131.5,131.48,21.70385438]
[1744509077040,0.063,131.5,131.47,21.70385438]
[1744509078640,0.063,131.5,131.46,21.70385438]
[1744509079725,0.063,131.5,131.46,7.6066]
[1744509079926,21.70385438,131.49,131.42,100.6229]
[1744509080140,21.70385438,131.48,131.43,21.70385438]
[1744509080529,0.34732314,131.5,131.4,29.88385438]
[1744509080827,21.70385438,131.48,131.43,21.70385438]
[1744509081147,21.70385438,131.49,131.43,21.70385438]
[1744509081653,29.30965438,131.48,131.43,21.70385438]
[1744509081943,21.70385438,131.47,131.42,21.70385438]
[1744509082838,29.30965438,131.48,131.42,21.70385438]
[1744509083042,21.70385438,131.48,131.43,21.70385438]
[1744509083644,0.063,131.5,131.47,7.6062]
[1744509083827,0.063,131.5,131.48,21.70385438]
[1744509084028,0.063,131.5,131.47,29.31005438]
[1744509084441,0.063,131.5,131.47,7.6062]
[1744509084746,0.063,131.5,131.47,29.31005438]
[1744509085147,0.063,131.5,131.44,19.0196]
[1744509085358,21.70385438,131.49,131.44,21.70385438]
[1744509085551,21.76685438,131.5,131.45,21.70385438]
[1744509085846,0.063,131.5,131.45,21.70385438]
[1744509086558,0.063,131.5,131.46,21.70385438]
[1744509087162,21.70385438,131.48,131.42,7.6091]
[1744509087457,21.70385438,131.45,131.41,7.6095]
[1744509087757,21.70385438,131.46,131.41,29.31335438]
[1744509087925,21.70385438,131.47,131.42,21.70385438]
[1744509088127,21.70385438,131.47,131.41,29.31335438]
[1744509088326,21.70385438,131.46,131.41,29.31335438]
[1744509088729,21.70385438,131.47,131.41,29.31335438]
[1744509089550,29.31015438,131.47,131.41,29.31335438]
[1744509090249,0.063,131.5,131.43,21.70385438]
[1744509090550,21.70385438,131.48,131.43,21.70385438]
[1744509090932,21.70385438,131.48,131.41,26.6339]
[1744509091123,21.70385438,131.48,131.42,21.70385438]
[1744509091323,21.70385438,131.46,131.41,29.31335438]
[1744509091529,21.70385438,131.47,131.42,21.70385438]
[1744509092049,21.70385438,131.47,131.41,29.31335438]
[1744509092827,21.70385438,131.48,131.42,21.70385438]
[1744509093147,21.70385438,131.47,131.42,21.70385438]
[1744509093557,6.68836157,131.47,131.37,7.612]
[1744509093751,21.70385438,131.39,131.36,0.03]
[1744509093933,21.70385438,131.38,131.36,0.03]
[1744509094138,21.70385438,131.37,131.36,0.03]
[1744509094339,6.5462,131.39,131.36,0.03]
[1744509094537,1.5653,131.41,131.36,7.6425]
[1744509094755,6.5462,131.42,131.36,0.03]
[1744509094930,262.78962314,131.45,131.38,21.70385438]
[1744509094931,269.0515,131.45,131.38,21.70385438]
[1744509095257,8.1115,131.45,131.41,21.70385438]
[1744509095558,29.31035438,131.47,131.36,49.88195438]
[1744509095756,29.31035438,131.47,131.41,21.70385438]
[1744509096245,13.7511,131.49,131.44,21.70385438]
[1744509096449,17.4243,131.5,131.45,21.70385438]
[1744509096641,39.12815438,131.5,131.44,21.70385438]
[1744509097151,21.70385438,131.49,131.39,8.18]
[1744509097343,21.70385438,131.49,131.44,21.70385438]
[1744509097549,29.30905438,131.49,131.44,21.70385438]
[1744509097758,29.30905438,131.49,131.43,7.6082]
[1744509098057,37.55155438,131.5,131.45,21.70385438]
[1744509098236,37.55155438,131.5,131.44,21.70385438]
[1744509099037,37.55155438,131.5,131.44,29.31175438]
[1744509101265,21.70385438,131.49,131.44,29.31175438]
[1744509101764,0.063,131.5,131.46,21.70385438]
[1744509102060,0.063,131.5,131.44,29.31175438]
[1744509102263,0.063,131.5,131.47,21.70385438]
[1744509102565,0.063,131.5,131.49,21.70385438]
[1744509103463,0.063,131.5,131.49,7.6051]
[1744509103660,0.063,131.5,131.49,29.30895438]
[1744509104044,0.063,131.5,131.49,7.6051]
[1744509104244,0.063,131.5,131.49,29.30895438]
[1744509105260,0.063,131.5,131.48,21.70385438]
[1744509106465,0.063,131.5,131.48,29.30955438]
[1744509106865,0.063,131.5,131.48,21.70385438]
[1744509107065,21.76685438,131.5,131.44,30.08385438]
[1744509107370,0.063,131.5,131.46,21.70385438]
[1744509108081,0.063,131.5,131.45,21.70385438]
[1744509108259,0.063,131.5,131.46,21.70385438]
[1744509108649,0.063,131.5,131.46,29.31015438]
[1744509110079,0.063,131.5,131.47,21.70385438]
[1744509110282,0.063,131.5,131.49,21.70385438]
[1744509110581,0.063,131.5,131.47,21.70385438]
[1744509110756,0.063,131.5,131.47,29.31005438]
[1744509111463,0.063,131.5,131.47,21.70385438]
[1744509111773,0.063,131.5,131.45,29.31085438]
[1744509111953,0.063,131.5,131.46,21.70385438]
[1744509112669,0.063,131.5,131.46,29.31035438]
[1744509112852,0.063,131.5,131.46,7.6065]
[1744509113461,26.0,131.41,131.36,0.03]
[1744509113674,21.70385438,131.37,131.36,0.03]
[1744509114684,29.31585438,131.37,131.36,0.03]
[1744509115270,29.74233909,131.37,131.36,0.03]
[1744509115651,29.31585438,131.37,131.36,0.03]
[1744509115856,37.69585438,131.37,131.36,0.03]
[1744509116074,29.31545438,131.38,131.36,0.03]
[1744509116461,21.70385438,131.37,131.36,0.03]
[1744509117069,29.31585438,131.37,131.36,0.03]
[1744509118070,29.74233909,131.37,131.36,0.03]
[1744509118661,29.31585438,131.37,131.36,0.03]
[1744509120764,8.38,131.39,131.36,0.03]
[1744509120955,21.70385438,131.39,131.36,0.03]
[1744509121377,21.70385438,131.38,131.36,0.03]
[1744509121967,29.31535438,131.38,131.36,0.03]
[1744509122297,21.70385438,131.38,131.36,0.03]
[1744509122462,21.70385438,131.42,131.36,21.73385438]
[1744509122656,21.70385438,131.42,131.37,21.70385438]
[1744509122979,21.70385438,131.42,131.36,0.03]
[1744509123158,21.70385438,131.41,131.36,21.73385438]
[1744509124094,29.31315438,131.42,131.36,0.03]
[1744509124388,21.70385438,131.41,131.36,21.73385438]
[1744509124687,21.70385438,131.4,131.36,0.03]
[1744509124874,1.69766157,131.36,131.35,0.03]
[1744509125079,26.14216157,131.34,131.3,0.03]
[1744509125258,21.70385438,131.31,131.3,0.03]
[1744509125460,30.08385438,131.31,131.3,0.03]
[1744509125789,8.38,131.32,131.3,0.03]
[1744509126100,29.31935438,131.31,131.3,0.03]
[1744509126571,37.69935438,131.31,131.3,0.03]
[1744509127283,48.1740552,131.31,131.3,0.03]
[1744509127965,7.6167,131.29,131.22,32.1785552]
[1744509128163,32.1785552,131.28,131.22,32.1785552]
[1744509128485,40.5385552,131.28,131.23,32.1785552]
[1744509128662,32.1785552,131.28,131.23,32.1785552]
[1744509128862,32.1785552,131.3,131.24,32.1785552]
[1744509129065,8.36,131.29,131.24,32.1785552]
[1744509129291,32.1785552,131.28,131.22,32.1785552]
[1744509129460,32.1785552,131.27,131.22,32.1785552]
[1744509129665,32.1785552,131.28,131.22,32.1785552]
[1744509130292,32.1785552,131.27,131.22,32.1785552]
[1744509130492,100.0373,131.33,131.25,32.1785552]
[1744509130696,8.36,131.29,131.26,32.1785552]
[1744509131000,8.36,131.34,131.28,32.1785552]
[1744509131166,32.1785552,131.33,131.28,32.1785552]
[1744509131367,39.7917552,131.35,131.29,32.1785552]
[1744509131665,15.9732,131.35,131.31,32.1785552]
[1744509131876,8.36,131.35,131.31,32.1785552]
[1744509132086,48.1518552,131.35,131.27,7.6178]
[1744509132470,48.1518552,131.35,131.3,32.1785552]
[1744509132871,40.5385552,131.35,131.3,32.1785552]
[1744509133086,32.1785552,131.35,131.3,32.1785552]
[1744509133261,48.1512552,131.36,131.3,32.1785552]
[1744509135083,32.1785552,131.35,131.3,32.1785552]
[1744509135465,32.1785552,131.34,131.26,1.6364]
[1744509135666,8.36,131.36,131.31,32.1785552]
[1744509135874,15.9727,131.36,131.31,32.1785552]
[1744509136186,14.7884,131.41,131.35,32.1785552]
[1744509136484,7.6107,131.4,131.35,39.7916552]
[1744509136684,7.608,131.44,131.38,32.1785552]
[1744509136860,15.968,131.44,131.39,32.1785552]
[1744509137063,32.1785552,131.43,131.35,9.1485]
[1744509137379,32.1785552,131.42,131.37,32.1785552]
[1744509137683,32.1785552,131.41,131.36,32.1785552]
[1744509137888,32.1785552,131.43,131.38,32.1785552]
[1744509138065,39.7865552,131.44,131.39,32.1785552]
[1744509138260,7.6076,131.45,131.39,32.1785552]
[1744509138482,39.7865552,131.44,131.39,39.7890552]
[1744509138983,39.7865552,131.44,131.39,7.6105]
[1744509139179,32.1785552,131.41,131.36,39.7911552]
[1744509139884,7.608,131.44,131.35,39.7915552]
[1744509139885,32.1785552,131.4,131.35,39.7915552]
[1744509140193,32.1785552,131.4,131.34,46.1641552]
[1744509140393,32.1785552,131.4,131.35,32.1785552]
[1744509140998,39.7888552,131.41,131.35,32.1785552]
[1744509141493,39.7888552,131.41,131.34,13.9856]
[1744509141683,39.7888552,131.41,131.35,32.1785552]
[1744509141863,39.7888552,131.41,131.36,32.1785552]
[1744509142069,32.1785552,131.41,131.35,7.6129]
[1744509142377,32.1785552,131.41,131.36,32.1785552]
[1744509142790,32.1785552,131.41,131.35,39.7914552]
[1744509142986,32.1785552,131.41,131.36,32.1785552]
[1744509143291,32.1785552,131.44,131.39,32.1785552]
[1744509143482,32.1785552,131.43,131.37,32.1785552]
[1744509144188,32.1785552,131.43,131.37,39.7900552]
[1744509144983,32.1785552,131.44,131.39,32.1785552]
[1744509145189,8.36,131.45,131.4,32.1785552]
[1744509145396,8.36,131.45,131.41,32.1785552]
[1744509145701,32.1785552,131.44,131.39,32.1785552]
[1744509145872,15.9675,131.45,131.38,32.1785552]
[1744509146080,32.1785552,131.43,131.37,39.7900552]
[1744509146272,32.1785552,131.42,131.37,32.1785552]
[1744509146477,32.1785552,131.4,131.35,32.1785552]
[1744509146775,32.1785552,131.4,131.34,46.1641552]
[1744509147284,21.74649083,131.4,131.34,35.73209083]
[1744509147483,29.35689083,131.4,131.34,35.73209083]
[1744509147681,21.74649083,131.39,131.34,35.73209083]
[1744509147880,21.74649083,131.35,131.3,7.616]
[1744509148087,21.74649083,131.33,131.3,7.616]
[1744509148291,21.74649083,131.36,131.3,21.74649083]
[1744509148617,21.74649083,131.34,131.29,29.36299083]
[1744509148787,21.74649083,131.35,131.29,29.36299083]
[1744509149102,8.36,131.38,131.29,29.36299083]
[1744509149300,21.74649083,131.35,131.3,21.74649083]
[1744509149593,21.74649083,131.37,131.31,21.74649083]
[1744509149785,21.74649083,131.36,131.3,29.36249083]
[1744509149996,21.74649083,131.35,131.29,29.36299083]
[1744509150301,21.74649083,131.3,131.25,29.36549083]
[1744509150596,21.74649083,131.31,131.25,29.36549083]
[1744509150773,21.74649083,131.32,131.26,21.74649083]
[1744509150978,121.39613969,131.36,131.25,29.36549083]
[1744509150979,21.74649083,131.3,131.25,29.36549083]
[1744509151173,102.74649083,131.36,131.24,0.03]
[1744509151174,21.74649083,131.28,131.24,0.03]
[1744509151372,21.74649083,131.25,131.24,0.03]
[1744509151575,108.43613357,131.32,131.24,0.03]
[1744509151576,29.36519083,131.26,131.24,0.03]
[1744509152283,21.74649083,131.27,131.24,0.03]
[1744509152685,21.74649083,131.27,131.24,0.0001]
[1744509152686,21.8886524,131.25,131.24,0.0001]
[1744509152889,26.0,131.22,131.16,2.6892353]
[1744509153095,21.74649083,131.17,131.16,3.53e-05]
[1744509153296,26.0,131.14,131.06,11.85648583]
[1744509153485,8.36,131.13,131.06,19.48648583]
[1744509153686,21.74649083,131.14,131.08,11.74649083]
[1744509153895,8.36,131.13,131.07,21.74649083]
[1744509154098,21.74649083,131.12,131.06,7.63]
[1744509154284,21.74649083,131.11,131.03,6.0535]
[1744509154681,21.74649083,131.12,131.03,6.0535]
[1744509154887,21.74649083,131.09,131.04,7.1311]
[1744509155096,7.6256,131.14,131.07,21.74649083]
[1744509155293,26.0,131.16,131.04,7.1311]
[1744509155499,26.0,131.16,131.0,1.0]
[1744509155500,8.36,131.13,131.0,0.14216157]
[1744509155695,7.6254,131.14,131.05,32.24219794]
[1744509155879,8.36,131.13,131.01,26.715]
[1744509156082,8.36,131.13,131.07,32.24219794]
[1744509156400,32.24219794,131.12,131.02,25.40841043]
[1744509156591,32.24219794,131.12,131.07,32.24219794]
[1744509156787,8.7,131.14,131.09,32.24219794]
[1744509156788,32.24219794,131.14,131.09,32.24219794]
[1744509157400,40.94219794,131.15,131.1,32.24219794]
[1744509157596,40.94219794,131.15,131.05,18.79181043]
[1744509157597,8.7,131.15,131.09,7.6282]
[1744509157907,8.7,131.17,131.1,32.24219794]
[1744509158086,32.24219794,131.16,131.1,32.24219794]
[1744509158287,32.24219794,131.16,131.11,32.24219794]
[1744509158483,32.24219794,131.17,131.12,32.24219794]
[1744509158685,48.56479794,131.19,131.14,32.24219794]
[1744509158890,16.3226,131.19,131.13,32.24219794]
[1744509159107,40.94219794,131.19,131.13,32.24219794]
[1744509159401,8.7,131.2,131.16,32.24219794]
[1744509159702,39.86299794,131.22,131.16,39.86629794]
[1744509160187,8.7,131.23,131.16,7.6241]
[1744509160500,32.24219794,131.21,131.12,25.275]
[1744509160680,32.24219794,131.21,131.16,32.24219794]
[1744509160884,48.56249794,131.23,131.18,32.24219794]
[1744509161084,32.24219794,131.22,131.17,32.24219794]
[1744509161491,32.24219794,131.2,131.13,26.691]
[1744509161802,16.3203,131.23,131.16,32.24219794]
[1744509161803,32.24219794,131.21,131.16,32.24219794]
[1744509161983,32.24219794,131.2,131.15,32.24219794]
[1744509162902,32.24219794,131.18,131.12,7.626]
[1744509163082,32.24219794,131.13,131.06,1.5416]
[1744509163283,32.24219794,131.11,131.07,7.6295]
[1744509164101,32.24219794,131.1,131.07,7.6295]
[1744509164483,32.24219794,131.11,131.07,7.6295]
[1744509164908,32.24219794,131.12,131.02,7.6324]
[1744509165485,26.6892,131.14,131.03,32.24219794]
[1744509165682,32.24219794,131.12,131.02,7.6324]
[1744509166088,19.065,131.13,131.04,32.24219794]
[1744509166295,32.24219794,131.11,131.02,26.7134]
[1744509166510,26.0,131.13,131.05,32.24219794]
[1744509166710,16.3248,131.15,131.06,32.24219794]
[1744509166897,32.24219794,131.11,131.06,32.24219794]
[1744509167097,32.24219794,131.11,131.05,32.24219794]
[1744509167295,26.0,131.12,131.04,32.24219794]
[1744509167610,32.24219794,131.11,131.06,32.24219794]
[1744509167910,7.6266,131.12,131.02,45.36304886]
[1744509168110,32.24219794,131.11,131.06,32.24219794]
[1744509168311,27.11538471,131.14,131.02,7.6324]
[1744509168495,32.24219794,131.09,131.03,32.24219794]
[1744509168702,32.24219794,131.09,131.04,32.24219794]
[1744509168901,32.24219794,131.07,131.01,7.6628]
[1744509169219,32.24219794,131.07,131.02,32.24219794]
[1744509169513,32.24219794,131.07,131.01,39.90499794]
[1744509169708,32.24219794,131.08,131.03,32.24219794]
[1744509169898,32.24219794,131.08,131.03,39.87399794]
[1744509170099,39.87049794,131.09,131.03,39.87399794]
[1744509170302,32.24219794,131.1,131.04,32.24219794]
[1744509170508,32.24219794,131.1,131.03,7.6318]
[1744509170708,32.24219794,131.09,131.03,39.87399794]
[1744509170901,32.24219794,131.11,131.05,32.24219794]
[1744509171134,32.24219794,131.11,131.03,7.6318]
[1744509171334,32.24219794,131.11,131.05,32.24219794]
[1744509171502,39.86939794,131.11,131.04,7.6307]
[1744509171704,32.24219794,131.1,131.05,32.24219794]
[1744509171996,7.6272,131.11,131.06,32.24219794]
[1744509171997,32.24219794,131.11,131.06,32.24219794]
[1744509172196,41.28219794,131.12,131.06,32.24219794]
[1744509173014,9.04,131.12,131.07,32.24219794]
[1744509173328,0.063,131.17,131.11,32.24219794]
[1744509173501,32.30519794,131.17,131.12,32.24219794]
[1744509173699,39.92899794,131.17,131.12,32.24219794]
[1744509173901,0.063,131.17,131.13,32.24219794]
[1744509174099,0.063,131.17,131.15,32.24219794]
[1744509174922,0.063,131.17,131.15,39.86679794]
[1744509175115,0.063,131.17,131.16,32.24219794]
[1744509176618,0.063,131.17,131.16,39.86639794]
[1744509176827,0.063,131.17,131.16,7.6242]
[1744509177012,0.063,131.17,131.16,39.86639794]
[1744509177519,0.063,131.17,131.11,7.6271]
[1744509177725,32.24219794,131.16,131.11,39.86929794]
[1744509178125,0.063,131.17,131.13,32.24219794]
[1744509178429,32.24219794,131.16,131.11,39.86929794]
[1744509178601,39.92909794,131.17,131.11,39.86929794]
[1744509179014,7.6869,131.17,131.12,32.24219794]
[1744509179231,39.92909794,131.17,131.11,39.36929794]
[1744509179609,39.92909794,131.17,131.12,32.24219794]
[1744509179819,0.063,131.17,131.11,7.1271]
[1744509180134,0.063,131.17,131.14,32.24219794]
[1744509180342,0.063,131.17,131.15,32.24219794]
[1744509180508,0.063,131.17,131.15,7.6248]
[1744509181022,0.063,131.17,131.16,32.24219794]
[1744509182824,0.063,131.17,131.16,7.6242]
[1744509183023,0.063,131.17,131.16,39.86639794]
[1744509183229,81.0,131.27,131.16,83.91940837]
[1744509183520,32.24219794,131.22,131.16,88.7242]
[1744509183727,32.24219794,131.22,131.17,32.24219794]
[1744509183928,32.24219794,131.22,131.16,7.1242]
[1744509184224,32.24219794,131.22,131.17,32.24219794]
[1744509184425,77.97883151,131.28,131.15,39.86689794]
[1744509184426,32.24219794,131.2,131.15,39.86689794]
[1744509184606,32.24219794,131.2,131.15,7.6247]
[1744509184811,39.86409794,131.2,131.15,32.24219794]
[1744509185008,7.6219,131.2,131.15,32.24219794]
[1744509185306,32.24219794,131.21,131.13,7.626]
[1744509185509,32.24219794,131.2,131.15,32.24219794]
[1744509185730,32.24219794,131.19,131.14,32.24219794]
[1744509186226,26.6726,131.22,131.12,6.2006]
[1744509186227,32.24219794,131.17,131.12,32.24219794]
[1744509186425,6.3788,131.21,131.11,7.6271]
[1744509186632,32.24219794,131.16,131.11,39.86929794]
[1744509186806,32.24219794,131.16,131.06,0.28432314]
[1744509186807,32.24219794,131.13,131.05,81.6]
[1744509187009,32.24219794,131.15,131.06,26.7052]
[1744509187226,39.86599794,131.17,131.12,32.24219794]
[1744509188128,6.3788,131.21,131.15,32.24219794]
[1744509188331,39.86429794,131.2,131.15,32.24219794]
[1744509188650,26.6769,131.2,131.09,90.64]
[1744509188814,32.24219794,131.15,131.1,32.24219794]
[1744509189016,58.91909794,131.2,131.08,18.64964886]
[1744509189017,26.6769,131.2,131.08,18.64964886]
[1744509189319,32.24219794,131.16,131.07,26.7032]
[1744509189522,32.24219794,131.15,131.1,32.24219794]
[1744509189923,32.24219794,131.17,131.11,32.24219794]
[1744509190230,32.24219794,131.17,131.12,32.24219794]
[1744509190425,32.24219794,131.17,131.11,32.24219794]
[1744509190641,32.24219794,131.18,131.12,32.24219794]
[1744509190834,26.6769,131.2,131.14,32.24219794]
[1744509190835,32.24219794,131.19,131.14,32.24219794]
[1744509191331,32.24219794,131.19,131.13,32.24219794]
[1744509191810,39.86499794,131.19,131.13,39.86789794]
[1744509192010,7.6228,131.19,131.14,32.24219794]
[1744509192224,39.86499794,131.19,131.14,32.24219794]
[1744509193436,39.86499794,131.19,131.13,32.24219794]
[1744509193830,32.24219794,131.18,131.1,26.27734886]
[1744509194009,32.24219794,131.14,131.07,81.6]
[1744509194214,26.6791,131.19,131.11,32.24219794]
[1744509194535,26.6791,131.19,131.08,89.2287]
[1744509194536,32.24219794,131.14,131.08,89.2287]
[1744509194734,32.24219794,131.14,131.09,32.24219794]
[1744509194938,26.6791,131.19,131.09,32.24219794]
[1744509195229,5.48143848,131.18,131.11,32.24219794]
[1744509195429,32.24219794,131.14,131.09,7.6278]
[1744509195633,32.24219794,131.14,131.09,39.86999794]
[1744509195823,5.48143848,131.18,131.09,39.86999794]
[1744509196022,32.24219794,131.15,131.09,39.86999794]
[1744509196230,19.0563,131.19,131.12,32.24219794]
[1744509196419,32.24219794,131.17,131.12,32.24219794]
[1744509196618,32.24219794,131.17,131.11,32.24219794]
[1744509197341,32.24219794,131.17,131.11,39.86929794]
[1744509197546,32.24219794,131.15,131.1,32.24219794]
[1744509197835,19.0563,131.19,131.09,7.6283]
[1744509197836,7.6219,131.2,131.13,32.24219794]
[1744509198039,32.24219794,131.19,131.13,32.24219794]
[1744509198343,32.24219794,131.18,131.13,32.24219794]
[1744509199040,7.6233,131.18,131.12,39.86839794]
[1744509199215,39.86549794,131.18,131.12,32.24219794]
[1744509199422,32.24219794,131.17,131.12,32.24219794]
[1744509199639,32.24219794,131.17,131.11,39.86889794]
[1744509199839,32.24219794,131.16,131.11,39.86889794]
[1744509200737,7.6233,131.18,131.13,32.24219794]
[1744509200941,7.6233,131.18,131.14,32.24219794]
[1744509201156,7.6233,131.18,131.12,32.24219794]
[1744509201157,32.24219794,131.17,131.12,32.24219794]
[1744509201341,29.44320024,131.18,131.12,21.81990024]
[1744509201546,21.81990024,131.17,131.09,100.6703]
[1744509201842,7.6219,131.2,131.14,21.81990024]
[1744509202044,21.81990024,131.16,131.1,7.6277]
[1744509202230,21.81990024,131.16,131.1,21.81990024]
[1744509202929,21.81990024,131.15,131.1,21.81990024]
[1744509203129,29.44500024,131.15,131.09,29.44790024]
[1744509203317,7.6251,131.15,131.1,21.81990024]
[1744509203525,19.0549,131.2,131.12,21.81990024]
[1744509203737,21.81990024,131.17,131.12,21.81990024]
[1744509203941,21.81990024,131.15,131.09,89.228]
[1744509204144,7.6225,131.19,131.12,21.81990024]
[1744509204332,21.81990024,131.17,131.12,21.81990024]
[1744509204733,7.6225,131.19,131.12,21.81990024]
[1744509204941,21.81990024,131.18,131.12,21.81990024]
[1744509205133,29.44320024,131.18,131.09,108.2988]
[1744509205334,29.44320024,131.18,131.12,21.81990024]
[1744509205822,21.81990024,131.18,131.13,21.81990024]
[1744509206028,7.6221,131.2,131.14,21.81990024]
[1744509206241,21.81990024,131.19,131.14,21.81990024]
[1744509207250,29.44200024,131.2,131.15,21.81990024]
[1744509208250,7.6221,131.2,131.14,21.81990024]
[1744509208430,21.81990024,131.19,131.14,21.81990024]
[1744509208629,21.81990024,131.2,131.15,21.81990024]
[1744509208846,29.44140024,131.21,131.16,21.81990024]
[1744509209236,21.81990024,131.2,131.12,100.6665]
[1744509209551,21.81990024,131.2,131.15,21.81990024]
[1744509210551,29.44210024,131.2,131.15,21.81990024]
[1744509210739,7.6216,131.21,131.15,29.44470024]
[1744509210927,21.81990024,131.22,131.17,21.81990024]
[1744509211129,21.81990024,131.19,131.14,21.81990024]
[1744509211328,7.6209,131.22,131.14,21.81990024]
[1744509211528,21.81990024,131.19,131.14,21.81990024]
[1744509211953,21.81990024,131.2,131.15,21.81990024]
[1744509212451,21.81990024,131.19,131.12,81.6]
[1744509212624,21.81990024,131.16,131.11,21.81990024]
[1744509212829,29.44350024,131.17,131.12,21.81990024]
[1744509213044,21.81990024,131.16,131.1,89.2275]
[1744509213250,21.81990024,131.14,131.07,89.6958]
[1744509213431,21.81990024,131.15,131.09,21.81990024]
[1744509213630,7.6233,131.18,131.12,21.81990024]
[1744509213829,21.81990024,131.21,131.15,21.81990024]
[1744509214331,21.81990024,131.17,131.12,81.6]
[1744509214532,21.81990024,131.17,131.11,21.81990024]
[1744509215533,7.6237,131.17,131.12,29.44640024]
[1744509216650,29.44250024,131.19,131.13,21.81990024]
[1744509217445,7.6226,131.19,131.14,21.81990024]
[1744509217651,29.44250024,131.19,131.14,21.81990024]
[1744509217954,29.44250024,131.19,131.13,7.6257]
[1744509218156,21.81990024,131.18,131.13,21.81990024]
[1744509218660,29.44250024,131.19,131.13,21.81990024]
[1744509219740,7.6207,131.22,131.15,21.81990024]
[1744509220039,27.34436748,131.21,131.16,21.81990024]
[1744509220251,27.34436748,131.21,131.15,21.81990024]
[1744509220847,29.44160024,131.21,131.15,29.44430024]
[1744509221052,21.81990024,131.19,131.13,7.626]
[1744509221253,21.81990024,131.2,131.14,21.81990024]
[1744509221937,21.81990024,131.2,131.15,21.81990024]